fUST/lending_fUST_20260531
["ID","MTS","AMOUNT","RATE_DAILY","PERIOD"]
[423567170,1780237842000,-151.0,0.000148,2]
[423567177,1780237842000,-151.0,0.00014812,2]
[423567220,1780237843000,-151.0,0.00015,2]
[423567219,1780237843000,-1294.95710472,0.00015,2]
[423567221,1780237843000,-582809.15548831,0.00015,2]
[423567240,1780237849000,-402.18100528,0.00010849,2]
[423567243,1780237849000,-213.19779495,0.00011997,2]
[423567246,1780237849000,-121.18938162,0.000147,2]
[423567242,1780237849000,-789.42220505,0.00011997,2]
[423567245,1780237849000,-500.90181042,0.00013698,2]
[423567244,1780237849000,-500.0,0.00013698,2]
[423567248,1780237849000,-2521.69382908,0.00015,2]
[423567241,1780237849000,-4597.81899472,0.00010849,2]
[423567250,1780237849000,-16247.21504921,0.00015,2]
[423567249,1780237849000,-18388.30750984,0.00015,2]
[423567247,1780237849000,-161.05743469,0.000147,2]
[423567253,1780237849000,-3750.0,0.00015,2]
[423567252,1780237849000,-97442.93744851,0.00015,2]
[423567255,1780237849000,-302.62139999,0.00015,2]
[423567254,1780237849000,-10828.6594506,0.00015,2]
[423567251,1780237849000,-3875.2381898,0.00015,2]
[423567298,1780238419000,8652.0,0.00020614,30]
[423567352,1780239032000,-300.0,7.999e-05,2]
[423567350,1780239032000,-1200.0,7.998e-05,2]
[423567354,1780239032000,-300.0,7.999e-05,2]
[423567356,1780239032000,-300.0,7.999e-05,2]
[423567358,1780239032000,-300.0,7.999e-05,2]
[423567361,1780239032000,-995.14569621,8e-05,2]
[423567364,1780239032000,-976.85473632,8e-05,2]
[423567359,1780239032000,-5000.0,8e-05,2]
[423567505,1780239039000,-557.62791719,9.179e-05,2]
[423567489,1780239039000,-3027.99956747,8e-05,2]
[423567497,1780239039000,-420.0,8.799e-05,2]
[423567491,1780239039000,-1151.0,8.798e-05,2]
[423567493,1780239039000,-287.0,8.799e-05,2]
[423567495,1780239039000,-287.0,8.799e-05,2]
[423567510,1780239039000,-160.0,0.00010665,2]
[423567499,1780239039000,-360.0,8.799e-05,2]
[423567511,1780239039000,-160.0,0.00010665,2]
[423567501,1780239039000,-500.0,9.179e-05,2]
[423567503,1780239039000,-500.0,9.179e-05,2]
[423567507,1780239039000,-287.0,9.679e-05,2]
[423567517,1780239039000,-269.17624006,0.000108,2]
[423567516,1780239039000,-269.17624006,0.000107,2]
[423567540,1780239039000,-17226.94880536,0.00013586,2]
[423567519,1780239039000,-269.17624006,0.000109,2]
[423567523,1780239039000,-269.17624006,0.000111,2]
[423567521,1780239039000,-269.17624006,0.00011,2]
[423567525,1780239039000,-185.0,0.00012377,2]
[423567529,1780239039000,-297.0450884,0.00013487,2]
[423567527,1780239039000,-185.344189,0.00012918,2]
[423567531,1780239039000,-182.31703279,0.00013585,2]
[423567536,1780239039000,-8646.90705166,0.00013586,2]
[423567533,1780239039000,-51028.6042309,0.00013586,2]
[423567538,1780239039000,-11181.7660873,0.00013586,2]
[423567514,1780239039000,-185.344189,0.00010672,2]
[423567691,1780239040000,-3238.28883582,0.00013586,2]
[423567716,1780239044000,-443.0,0.00012377,2]
[423567717,1780239044000,-28676.99999999,0.00013586,2]
[423567718,1780239044000,-348.0,0.00013586,2]
[423567737,1780239046000,-361.538987,0.00013698,2]
[423567729,1780239046000,-5000.0,0.00012253,2]
[423567731,1780239046000,-2260.18493572,0.00013586,2]
[423567733,1780239046000,-184.43783118,0.00013666,2]
[423567734,1780239046000,-166.24290255,0.00013666,2]
[423567736,1780239046000,-361.538987,0.00013698,2]
[423567732,1780239046000,-60825.30005325,0.00013586,2]
[423567735,1780239046000,-171.06852132,0.00013666,2]
[423567738,1780239046000,-361.538987,0.00013698,2]
[423567739,1780239046000,-361.538987,0.00013698,2]
[423567749,1780239046000,-361.538987,0.00013698,2]
[423567742,1780239046000,-361.538987,0.00013698,2]
[423567745,1780239046000,-361.538987,0.00013698,2]
[423567747,1780239046000,-361.538987,0.00013698,2]
[423567748,1780239046000,-361.538987,0.00013698,2]
[423567740,1780239046000,-361.538987,0.00013698,2]
[423567743,1780239046000,-361.538987,0.00013698,2]
[423567746,1780239046000,-361.538987,0.00013698,2]
[423567741,1780239046000,-361.538987,0.00013698,2]
[423567744,1780239046000,-361.538987,0.00013698,2]
[423567757,1780239047000,-361.538987,0.00013698,2]
[423567758,1780239047000,-181.87806995,0.00013698,2]
[423567753,1780239047000,-361.538987,0.00013698,2]
[423567755,1780239047000,-361.538987,0.00013698,2]
[423567754,1780239047000,-361.538987,0.00013698,2]
[423567752,1780239047000,-361.538987,0.00013698,2]
[423567750,1780239047000,-361.538987,0.00013698,2]
[423567751,1780239047000,-361.538987,0.00013698,2]
[423567756,1780239047000,-361.538987,0.00013698,2]
[423567761,1780239422000,179.65145299,0.00020633,120]
[423567765,1780239672000,-204.79,8e-05,2]
[423567767,1780239689000,-204.78,8e-05,2]
[423567798,1780239706000,-203.15,8e-05,2]
[423567799,1780239706000,161.0,0.000205,120]
[423567800,1780239723000,-1880.01304121,0.00010673,2]
[423567802,1780239740000,-203.15,0.00010673,2]
[423567803,1780239756000,-1880.01304121,0.00010673,2]
[423567804,1780239773000,-203.15,0.00010673,2]
[423567805,1780239790000,-833.67391758,0.00010673,2]
[423567882,1780240239000,-496.74182089,0.00010957,2]
[423567878,1780240239000,-500.0,0.00010957,2]
[423567881,1780240239000,-500.0,0.00010957,2]
[423567880,1780240239000,-500.0,0.00010957,2]
[423567883,1780240239000,-500.0,0.00010957,2]
[423567887,1780240239000,-500.0,0.00010957,2]
[423567886,1780240239000,-500.0,0.00010957,2]
[423567885,1780240239000,-500.0,0.00010957,2]
[423567888,1780240239000,-500.0,0.00010957,2]
[423567894,1780240239000,-500.0,0.00010957,2]
[423567877,1780240239000,-500.0,0.00010957,2]
[423567884,1780240239000,-500.0,0.00010957,2]
[423567879,1780240239000,-500.0,0.00010957,2]
[423567890,1780240239000,-500.0,0.00010957,2]
[423567876,1780240239000,-235.38795542,0.00010957,2]
[423567874,1780240239000,-977.42429784,0.000109,2]
[423567873,1780240239000,-977.42429784,0.000108,2]
[423567871,1780240239000,-977.42429784,0.000107,2]
[423567870,1780240239000,-220.2668157,0.00010283,2]
[423567869,1780240239000,-300.0,0.00010077,2]
[423567867,1780240239000,-300.0,0.00010077,2]
[423567866,1780240239000,-300.0,0.00010077,2]
[423567872,1780240239000,-160.0,0.00010703,2]
[423567864,1780240239000,-5000.0,9.877e-05,2]
[423567863,1780240239000,-5000.0,9.778e-05,2]
[423567865,1780240239000,-1101.0,9.976e-05,2]
[423567862,1780240239000,-5000.0,9.68e-05,2]
[423567875,1780240239000,-191.11402872,0.00010957,2]
[423567889,1780240239000,-498.73534114,0.00010957,2]
[423567868,1780240239000,-300.0,0.00010077,2]
[423567893,1780240239000,-500.0,0.00010957,2]
[423567891,1780240239000,-500.0,0.00010957,2]
[423567920,1780240239000,-3629.0,0.0001241,2]
[423567919,1780240239000,-166.707,0.00012377,2]
[423567917,1780240239000,-829.78,0.00012329,2]
[423567918,1780240239000,-150.062,0.00012377,2]
[423567915,1780240239000,-5000.0,0.00012274,2]
[423567921,1780240239000,-1836.0,0.0001241,2]
[423567913,1780240239000,-5000.0,0.00012274,2]
[423567914,1780240239000,-5000.0,0.00012274,2]
[423567912,1780240239000,-5000.0,0.00012274,2]
[423567911,1780240239000,-587.0,0.00012191,2]
[423567909,1780240239000,-160.0,0.00012059,2]
[423567910,1780240239000,-767.37531181,0.00012059,2]
[423567907,1780240239000,-167.0183969,0.0001158,2]
[423567916,1780240239000,-5000.0,0.00012274,2]
[423567908,1780240239000,-259.91445235,0.00011961,2]
[423567892,1780240239000,-500.0,0.00010957,2]
[423567906,1780240239000,-638.6982689,0.00011367,2]
[423567895,1780240239000,-500.0,0.00010957,2]
[423567897,1780240239000,-500.0,0.00010957,2]
[423567896,1780240239000,-500.0,0.00010957,2]
[423567899,1780240239000,-500.0,0.00010957,2]
[423567898,1780240239000,-500.0,0.00010957,2]
[423567902,1780240239000,-1907.38,0.00011,2]
[423567903,1780240239000,-977.42429784,0.00011,2]
[423567905,1780240239000,-977.42429784,0.000111,2]
[423567904,1780240239000,-420.0,0.00011084,2]
[423567901,1780240239000,-4202.8610226,0.00010959,2]
[423567900,1780240239000,-500.0,0.00010957,2]
[423567946,1780240240000,-361.538987,0.00013698,2]
[423567952,1780240240000,-361.538987,0.00013698,2]
[423567945,1780240240000,-361.538987,0.00013698,2]
[423567948,1780240240000,-361.538987,0.00013698,2]
[423567947,1780240240000,-361.538987,0.00013698,2]
[423567950,1780240240000,-361.538987,0.00013698,2]
[423567951,1780240240000,-361.538987,0.00013698,2]
[423567949,1780240240000,-361.538987,0.00013698,2]
[423567953,1780240240000,-361.538987,0.00013698,2]
[423567963,1780240240000,-361.538987,0.00013698,2]
[423567955,1780240240000,-361.538987,0.00013698,2]
[423567956,1780240240000,-361.538987,0.00013698,2]
[423567957,1780240240000,-361.538987,0.00013698,2]
[423567961,1780240240000,-361.538987,0.00013698,2]
[423567960,1780240240000,-361.538987,0.00013698,2]
[423567962,1780240240000,-361.538987,0.00013698,2]
[423567958,1780240240000,-361.538987,0.00013698,2]
[423567944,1780240240000,-361.538987,0.00013698,2]
[423567954,1780240240000,-361.538987,0.00013698,2]
[423567938,1780240240000,-596.10235326,0.000135,2]
[423567932,1780240240000,-596.10235326,0.000133,2]
[423567937,1780240240000,-752.0,0.00013409,2]
[423567922,1780240240000,-743.0,0.00012677,2]
[423567923,1780240240000,-185.0,0.00012677,2]
[423567925,1780240240000,-422.05972355,0.00012729,2]
[423567926,1780240240000,-422.05972355,0.00012983,7]
[423567924,1780240240000,-443.0,0.00012677,2]
[423567927,1780240240000,-596.10235326,0.00013,2]
[423567930,1780240240000,-5134.018977,0.00013185,2]
[423567964,1780240240000,-361.538987,0.00013698,2]
[423567929,1780240240000,-5245.0296552,0.00013139,2]
[423567928,1780240240000,-596.10235326,0.000131,2]
[423567931,1780240240000,-2663.0162536,0.00013185,2]
[423567933,1780240240000,-422.05972355,0.00013365,14]
[423567934,1780240240000,-596.10235326,0.000134,2]
[423567936,1780240240000,-832.0,0.000134,2]
[423567935,1780240240000,-824.0,0.000134,2]
[423567942,1780240240000,-179.66091705,0.00013698,2]
[423567941,1780240240000,-165.26441077,0.00013684,2]
[423567940,1780240240000,-180.62689917,0.00013684,2]
[423567943,1780240240000,-361.538987,0.00013698,2]
[423567939,1780240240000,-155.16004238,0.00013684,2]
[423567966,1780240240000,-361.538987,0.00013698,2]
[423567959,1780240240000,-361.538987,0.00013698,2]
[423567969,1780240240000,-361.538987,0.00013698,2]
[423567994,1780240240000,-361.538987,0.00013698,2]
[423567996,1780240240000,-361.538987,0.00013698,2]
[423568000,1780240240000,-361.538987,0.00013698,2]
[423567998,1780240240000,-361.538987,0.00013698,2]
[423567997,1780240240000,-361.538987,0.00013698,2]
[423567999,1780240240000,-361.538987,0.00013698,2]
[423568002,1780240240000,-361.538987,0.00013698,2]
[423568001,1780240240000,-361.538987,0.00013698,2]
[423568003,1780240240000,-361.538987,0.00013698,2]
[423568004,1780240240000,-361.538987,0.00013698,2]
[423568007,1780240240000,-361.538987,0.00013698,2]
[423568010,1780240240000,-361.538987,0.00013698,2]
[423568008,1780240240000,-361.538987,0.00013698,2]
[423568006,1780240240000,-361.538987,0.00013698,2]
[423568009,1780240240000,-361.538987,0.00013698,2]
[423568011,1780240240000,-361.538987,0.00013698,2]
[423568012,1780240240000,-361.538987,0.00013698,2]
[423568013,1780240240000,-361.538987,0.00013698,2]
[423567965,1780240240000,-361.538987,0.00013698,2]
[423567995,1780240240000,-361.538987,0.00013698,2]
[423567993,1780240240000,-361.538987,0.00013698,2]
[423568005,1780240240000,-361.538987,0.00013698,2]
[423567991,1780240240000,-361.538987,0.00013698,2]
[423567992,1780240240000,-361.538987,0.00013698,2]
[423567968,1780240240000,-361.538987,0.00013698,2]
[423567970,1780240240000,-361.538987,0.00013698,2]
[423567972,1780240240000,-361.538987,0.00013698,2]
[423567971,1780240240000,-361.538987,0.00013698,2]
[423567973,1780240240000,-361.538987,0.00013698,2]
[423567975,1780240240000,-361.538987,0.00013698,2]
[423567974,1780240240000,-361.538987,0.00013698,2]
[423567977,1780240240000,-361.538987,0.00013698,2]
[423567978,1780240240000,-361.538987,0.00013698,2]
[423567967,1780240240000,-361.538987,0.00013698,2]
[423567976,1780240240000,-361.538987,0.00013698,2]
[423567980,1780240240000,-361.538987,0.00013698,2]
[423567982,1780240240000,-361.538987,0.00013698,2]
[423567981,1780240240000,-361.538987,0.00013698,2]
[423567984,1780240240000,-361.538987,0.00013698,2]
[423567986,1780240240000,-361.538987,0.00013698,2]
[423567990,1780240240000,-361.538987,0.00013698,2]
[423567988,1780240240000,-361.538987,0.00013698,2]
[423567979,1780240240000,-361.538987,0.00013698,2]
[423568033,1780240241000,-500.0,0.00013698,2]
[423568044,1780240241000,-500.0,0.00013698,2]
[423568043,1780240241000,-500.0,0.00013698,2]
[423568042,1780240241000,-500.0,0.00013698,2]
[423568038,1780240241000,-500.0,0.00013698,2]
[423568040,1780240241000,-500.0,0.00013698,2]
[423568039,1780240241000,-500.0,0.00013698,2]
[423568047,1780240241000,-500.0,0.00013698,2]
[423568041,1780240241000,-163.79444771,0.00013698,2]
[423568046,1780240241000,-500.0,0.00013698,2]
[423568056,1780240241000,-500.0,0.00013698,2]
[423568050,1780240241000,-500.0,0.00013698,2]
[423568049,1780240241000,-501.0429184,0.00013698,2]
[423568048,1780240241000,-500.97057572,0.00013698,2]
[423568051,1780240241000,-171.39956595,0.00013698,2]
[423568055,1780240241000,-500.0,0.00013698,2]
[423568054,1780240241000,-500.0,0.00013698,2]
[423568057,1780240241000,-500.0,0.00013698,2]
[423568052,1780240241000,-385.09,0.00013698,2]
[423568045,1780240241000,-500.0,0.00013698,2]
[423568037,1780240241000,-500.0,0.00013698,2]
[423568014,1780240241000,-361.538987,0.00013698,2]
[423568036,1780240241000,-500.0,0.00013698,2]
[423568017,1780240241000,-361.538987,0.00013698,2]
[423568015,1780240241000,-361.538987,0.00013698,2]
[423568053,1780240241000,-500.0,0.00013698,2]
[423568016,1780240241000,-361.538987,0.00013698,2]
[423568019,1780240241000,-361.538987,0.00013698,2]
[423568021,1780240241000,-361.538987,0.00013698,2]
[423568020,1780240241000,-361.538987,0.00013698,2]
[423568022,1780240241000,-361.538987,0.00013698,2]
[423568023,1780240241000,-361.538987,0.00013698,2]
[423568024,1780240241000,-501.79696366,0.00013698,2]
[423568026,1780240241000,-2626.6924,0.00013698,2]
[423568027,1780240241000,-500.0,0.00013698,2]
[423568025,1780240241000,-2626.6924,0.00013698,2]
[423568028,1780240241000,-500.0,0.00013698,2]
[423568029,1780240241000,-500.80158465,0.00013698,2]
[423568031,1780240241000,-500.0,0.00013698,2]
[423568030,1780240241000,-500.0,0.00013698,2]
[423568032,1780240241000,-500.0,0.00013698,2]
[423568034,1780240241000,-500.0,0.00013698,2]
[423568035,1780240241000,-500.0,0.00013698,2]
[423568059,1780240241000,-500.0,0.00013698,2]
[423568018,1780240241000,-361.538987,0.00013698,2]
[423568058,1780240241000,-500.0,0.00013698,2]
[423568088,1780240241000,-500.0,0.00013698,2]
[423568090,1780240241000,-500.90549987,0.00013698,2]
[423568086,1780240241000,-500.0,0.00013698,2]
[423568089,1780240241000,-500.0,0.00013698,2]
[423568091,1780240241000,-500.0,0.00013698,2]
[423568092,1780240241000,-500.0,0.00013698,2]
[423568094,1780240241000,-501.05073867,0.00013698,2]
[423568093,1780240241000,-1000.0,0.00013698,2]
[423568095,1780240241000,-500.0,0.00013698,2]
[423568098,1780240241000,-500.0,0.00013698,2]
[423568101,1780240241000,-500.0,0.00013698,2]
[423568097,1780240241000,-500.0,0.00013698,2]
[423568096,1780240241000,-605.41369361,0.00013698,2]
[423568100,1780240241000,-500.0,0.00013698,2]
[423568099,1780240241000,-501.56575587,0.00013698,2]
[423568106,1780240241000,-500.0,0.00013698,2]
[423568103,1780240241000,-500.0,0.00013698,2]
[423568107,1780240241000,-500.0,0.00013698,2]
[423568060,1780240241000,-500.0,0.00013698,2]
[423568085,1780240241000,-501.63529937,0.00013698,2]
[423568087,1780240241000,-500.0,0.00013698,2]
[423568105,1780240241000,-500.0,0.00013698,2]
[423568083,1780240241000,-500.0,0.00013698,2]
[423568084,1780240241000,-426.20071211,0.00013698,2]
[423568061,1780240241000,-500.0,0.00013698,2]
[423568063,1780240241000,-500.0,0.00013698,2]
[423568066,1780240241000,-500.0,0.00013698,2]
[423568064,1780240241000,-500.0,0.00013698,2]
[423568065,1780240241000,-500.0,0.00013698,2]
[423568067,1780240241000,-500.0,0.00013698,2]
[423568070,1780240241000,-500.0,0.00013698,2]
[423568073,1780240241000,-500.0,0.00013698,2]
[423568074,1780240241000,-500.0,0.00013698,2]
[423568062,1780240241000,-500.0,0.00013698,2]
[423568072,1780240241000,-500.0,0.00013698,2]
[423568071,1780240241000,-500.0,0.00013698,2]
[423568080,1780240241000,-500.0,0.00013698,2]
[423568077,1780240241000,-500.0,0.00013698,2]
[423568081,1780240241000,-500.0,0.00013698,2]
[423568079,1780240241000,-500.0,0.00013698,2]
[423568075,1780240241000,-500.0,0.00013698,2]
[423568076,1780240241000,-500.0,0.00013698,2]
[423568078,1780240241000,-500.0,0.00013698,2]
[423568082,1780240241000,-500.0,0.00013698,2]
[423568126,1780240242000,-1733.12,0.00013698,2]
[423568127,1780240242000,-230.53509649,0.00013698,2]
[423568134,1780240242000,-1239.33,0.00013698,2]
[423568129,1780240242000,-1733.12,0.00013698,2]
[423568130,1780240242000,-1733.12,0.00013698,2]
[423568131,1780240242000,-1733.12,0.00013698,2]
[423568132,1780240242000,-1733.12,0.00013698,2]
[423568137,1780240242000,-1733.12,0.00013698,2]
[423568135,1780240242000,-1733.12,0.00013698,2]
[423568136,1780240242000,-1239.33,0.00013698,2]
[423568138,1780240242000,-1733.12,0.00013698,2]
[423568140,1780240242000,-1733.12,0.00013698,2]
[423568139,1780240242000,-1239.33,0.00013698,2]
[423568128,1780240242000,-1733.12,0.00013698,2]
[423568141,1780240242000,-1239.33,0.00013698,2]
[423568133,1780240242000,-1733.12,0.00013698,2]
[423568124,1780240242000,-1733.12,0.00013698,2]
[423568114,1780240242000,-1733.12,0.00013698,2]
[423568122,1780240242000,-1733.12,0.00013698,2]
[423568142,1780240242000,-1733.12,0.00013698,2]
[423568111,1780240242000,-1733.12,0.00013698,2]
[423568108,1780240242000,-500.0,0.00013698,2]
[423568112,1780240242000,-1733.12,0.00013698,2]
[423568110,1780240242000,-500.0,0.00013698,2]
[423568109,1780240242000,-500.7784865,0.00013698,2]
[423568113,1780240242000,-1733.12,0.00013698,2]
[423568115,1780240242000,-1733.12,0.00013698,2]
[423568116,1780240242000,-1733.12,0.00013698,2]
[423568117,1780240242000,-500.0,0.00013698,2]
[423568120,1780240242000,-1733.12,0.00013698,2]
[423568121,1780240242000,-500.0,0.00013698,2]
[423568118,1780240242000,-1733.12,0.00013698,2]
[423568119,1780240242000,-500.0,0.00013698,2]
[423568123,1780240242000,-500.0,0.00013698,2]
[423568125,1780240242000,-500.0,0.00013698,2]
[423568144,1780240242000,-1733.24948988,0.00013698,2]
[423568147,1780240242000,-1239.33,0.00013698,2]
[423568145,1780240242000,-1239.33,0.00013698,2]
[423568166,1780240242000,-500.0,0.00013698,2]
[423568168,1780240242000,-402.31104959,0.00013698,2]
[423568170,1780240242000,-500.0,0.00013698,2]
[423568171,1780240242000,-419.29849892,0.00013698,2]
[423568167,1780240242000,-500.0,0.00013698,2]
[423568169,1780240242000,-500.0,0.00013698,2]
[423568174,1780240242000,-500.0,0.00013698,2]
[423568163,1780240242000,-1239.33,0.00013698,2]
[423568173,1780240242000,-500.0,0.00013698,2]
[423568176,1780240242000,-500.0,0.00013698,2]
[423568175,1780240242000,-500.0,0.00013698,2]
[423568178,1780240242000,-500.0,0.00013698,2]
[423568180,1780240242000,-500.0,0.00013698,2]
[423568179,1780240242000,-500.0,0.00013698,2]
[423568143,1780240242000,-1733.12,0.00013698,2]
[423568181,1780240242000,-500.0,0.00013698,2]
[423568177,1780240242000,-500.36224556,0.00013698,2]
[423568164,1780240242000,-1239.33,0.00013698,2]
[423568172,1780240242000,-501.74443878,0.00013698,2]
[423568161,1780240242000,-1239.33,0.00013698,2]
[423568165,1780240242000,-1239.45066765,0.00013698,2]
[423568148,1780240242000,-1239.33,0.00013698,2]
[423568149,1780240242000,-1239.33,0.00013698,2]
[423568150,1780240242000,-1239.33,0.00013698,2]
[423568152,1780240242000,-1239.33,0.00013698,2]
[423568153,1780240242000,-1239.33,0.00013698,2]
[423568155,1780240242000,-1239.33,0.00013698,2]
[423568151,1780240242000,-1239.33,0.00013698,2]
[423568146,1780240242000,-1239.33,0.00013698,2]
[423568157,1780240242000,-500.0,0.00013698,2]
[423568160,1780240242000,-1239.33,0.00013698,2]
[423568156,1780240242000,-1239.33,0.00013698,2]
[423568158,1780240242000,-1239.33,0.00013698,2]
[423568159,1780240242000,-1239.33,0.00013698,2]
[423568162,1780240242000,-1239.33,0.00013698,2]
[423568154,1780240242000,-1239.33,0.00013698,2]
[423568208,1780240243000,-814.86,0.00013698,2]
[423568203,1780240243000,-500.0,0.00013698,2]
[423568204,1780240243000,-636.68742066,0.00013698,2]
[423568206,1780240243000,-814.86,0.00013698,2]
[423568205,1780240243000,-501.00125911,0.00013698,2]
[423568207,1780240243000,-814.86,0.00013698,2]
[423568210,1780240243000,-814.86,0.00013698,2]
[423568217,1780240243000,-97.92194065,0.00013698,2]
[423568211,1780240243000,-814.86,0.00013698,2]
[423568212,1780240243000,-814.86,0.00013698,2]
[423568213,1780240243000,-814.86,0.00013698,2]
[423568214,1780240243000,-814.86,0.00013698,2]
[423568215,1780240243000,-716.93805935,0.00013698,2]
[423568219,1780240243000,-814.86,0.00013698,2]
[423568218,1780240243000,-814.86,0.00013698,2]
[423568197,1780240243000,-500.0,0.00013698,2]
[423568209,1780240243000,-500.0,0.00013698,2]
[423568200,1780240243000,-500.0,0.00013698,2]
[423568183,1780240243000,-500.0,0.00013698,2]
[423568198,1780240243000,-500.0,0.00013698,2]
[423568221,1780240243000,-814.86,0.00013698,2]
[423568182,1780240243000,-500.0,0.00013698,2]
[423568184,1780240243000,-500.0,0.00013698,2]
[423568185,1780240243000,-500.0,0.00013698,2]
[423568186,1780240243000,-500.0,0.00013698,2]
[423568187,1780240243000,-500.80550408,0.00013698,2]
[423568189,1780240243000,-500.0,0.00013698,2]
[423568202,1780240243000,-500.0,0.00013698,2]
[423568188,1780240243000,-554.65459248,0.00013698,2]
[423568190,1780240243000,-529.82239356,0.00013698,2]
[423568193,1780240243000,-500.0,0.00013698,2]
[423568192,1780240243000,-500.0,0.00013698,2]
[423568194,1780240243000,-500.0,0.00013698,2]
[423568195,1780240243000,-500.0,0.00013698,2]
[423568196,1780240243000,-500.0,0.00013698,2]
[423568199,1780240243000,-500.0,0.00013698,2]
[423568191,1780240243000,-500.0,0.00013698,2]
[423568220,1780240243000,-814.86,0.00013698,2]
[423568201,1780240243000,-500.0,0.00013698,2]
[423568222,1780240243000,-814.86,0.00013698,2]
[423568245,1780240243000,-814.93502807,0.00013698,2]
[423568247,1780240243000,-634.93,0.00013698,2]
[423568248,1780240243000,-634.93,0.00013698,2]
[423568251,1780240243000,-500.0,0.00013698,2]
[423568250,1780240243000,-500.0,0.00013698,2]
[423568249,1780240243000,-634.93,0.00013698,2]
[423568253,1780240243000,-500.0,0.00013698,2]
[423568252,1780240243000,-500.0,0.00013698,2]
[423568255,1780240243000,-500.0,0.00013698,2]
[423568257,1780240243000,-500.0,0.00013698,2]
[423568256,1780240243000,-399.06209385,0.00013698,2]
[423568258,1780240243000,-501.03988881,0.00013698,2]
[423568259,1780240243000,-500.0,0.00013698,2]
[423568260,1780240243000,-500.0,0.00013698,2]
[423568262,1780240243000,-500.99131499,0.00013698,2]
[423568261,1780240243000,-500.0,0.00013698,2]
[423568223,1780240243000,-814.86,0.00013698,2]
[423568246,1780240243000,-634.93,0.00013698,2]
[423568244,1780240243000,-634.93,0.00013698,2]
[423568254,1780240243000,-505.10970556,0.00013698,2]
[423568243,1780240243000,-814.86,0.00013698,2]
[423568225,1780240243000,-814.86,0.00013698,2]
[423568242,1780240243000,-634.93,0.00013698,2]
[423568227,1780240243000,-814.86,0.00013698,2]
[423568226,1780240243000,-634.93,0.00013698,2]
[423568229,1780240243000,-814.86,0.00013698,2]
[423568228,1780240243000,-634.93,0.00013698,2]
[423568231,1780240243000,-814.86,0.00013698,2]
[423568230,1780240243000,-634.93,0.00013698,2]
[423568224,1780240243000,-634.93,0.00013698,2]
[423568233,1780240243000,-814.86,0.00013698,2]
[423568234,1780240243000,-634.93,0.00013698,2]
[423568236,1780240243000,-634.93,0.00013698,2]
[423568237,1780240243000,-500.64452405,0.00013698,2]
[423568238,1780240243000,-634.93,0.00013698,2]
[423568241,1780240243000,-814.86,0.00013698,2]
[423568232,1780240243000,-634.93,0.00013698,2]
[423568240,1780240243000,-634.93,0.00013698,2]
[423568239,1780240243000,-814.86,0.00013698,2]
[423568294,1780240244000,-4414.964158,0.00013698,2]
[423568301,1780240244000,-500.0,0.00013698,2]
[423568300,1780240244000,-500.0,0.00013698,2]
[423568299,1780240244000,-500.0,0.00013698,2]
[423568287,1780240244000,-4414.964158,0.00013698,2]
[423568295,1780240244000,-500.0,0.00013698,2]
[423568296,1780240244000,-500.0,0.00013698,2]
[423568293,1780240244000,-500.0,0.00013698,2]
[423568297,1780240244000,-500.0,0.00013698,2]
[423568298,1780240244000,-500.0,0.00013698,2]